bitfinex/quotes_BTCUSD_20260215
["timestamp","ask_amount","ask_price","bid_price","bid_amount"]
[1771135129097,0.07122237,70288.0,70283.0,0.02303408]
[1771135130383,0.07122237,70288.0,70283.0,0.09417503]
[1771135130587,8.62e-05,70288.0,70283.0,0.09417503]
[1771135130787,0.07122264,70288.0,70283.0,0.02303408]
[1771135131654,0.07122264,70288.0,70283.0,0.09417496]
[1771135132713,8.62e-05,70288.0,70283.0,0.09417496]
[1771135132917,8.62e-05,70288.0,70283.0,0.07114088]
[1771135135641,8.62e-05,70288.0,70281.0,0.07146662]
[1771135136048,0.07113697,70287.0,70282.0,0.07114196]
[1771135136250,0.0712225,70288.0,70283.0,0.0002]
[1771135136548,0.0716225,70288.0,70283.0,0.0002]
[1771135137232,0.07113692,70287.0,70283.0,0.0002]
[1771135138840,0.07162254,70288.0,70283.0,0.0002]
[1771135139041,0.07113704,70287.0,70283.0,0.0002]
[1771135141233,0.07162235,70288.0,70283.0,0.0002]
[1771135143311,0.07162237,70288.0,70283.0,0.0002]
[1771135144052,0.03923749,70288.0,70283.0,0.0002]
[1771135144483,0.07118451,70295.0,70285.0,0.2845532]
[1771135144735,5.5e-05,70295.0,70290.0,0.07113311]
[1771135144910,5.5e-05,70295.0,70288.0,0.07113573]
[1771135145238,0.0711305,70294.0,70287.0,0.07113655]
[1771135145436,0.07113106,70293.0,70287.0,0.07113655]
[1771135145811,0.0004,70288.0,70287.0,0.07113655]
[1771135146024,0.0004,70288.0,70286.0,0.17252368]
[1771135146428,0.0004,70288.0,70286.0,0.07113611]
[1771135147355,0.0004,70288.0,70287.0,0.07113691]
[1771135152342,0.0004,70288.0,70285.0,0.3729614]
[1771135153046,0.0004,70288.0,70286.0,0.07113717]
[1771135153860,0.0004,70288.0,70285.0,0.30182446]
[1771135157343,0.07113792,70286.0,70285.0,0.30182446]
[1771135157541,0.07113792,70286.0,70283.0,0.0002]
[1771135158520,0.07113691,70287.0,70283.0,0.0002]
[1771135159126,0.0711381,70286.0,70283.0,0.0002]
[1771135160684,0.02493465,70285.0,70283.0,0.0002]
[1771135161043,0.0711373,70287.0,70283.0,0.0002]
[1771135161263,0.0711373,70287.0,70280.0,0.34068]
[1771135161264,0.07113852,70286.0,70280.0,0.34068]
[1771135161459,0.07113968,70285.0,70280.0,0.34111417]
[1771135161664,0.02493465,70284.0,70280.0,0.34111417]
[1771135162772,0.09607459,70284.0,70283.0,0.0002]
[1771135165975,0.02493465,70284.0,70283.0,0.0002]
[1771135167076,0.09607459,70284.0,70283.0,0.0002]
[1771135168130,0.02493465,70284.0,70283.0,0.0002]
[1771135168897,0.06990548,70286.0,70283.0,0.0002]
[1771135169098,0.07113871,70287.0,70283.0,0.0002]
[1771135169281,0.09607336,70287.0,70283.0,0.0002]
[1771135169646,0.07113792,70286.0,70283.0,0.0002]
[1771135170096,0.07113907,70285.0,70283.0,0.0002]
[1771135170638,0.07113827,70286.0,70283.0,0.0002]
[1771135172649,0.0004,70285.0,70283.0,0.0002]
[1771135172851,0.07153902,70285.0,70283.0,0.0002]
[1771135173024,0.0004,70285.0,70283.0,0.0002]
[1771135174586,0.0004,70288.0,70283.0,0.0002]
[1771135174794,0.0004,70288.0,70285.0,0.07113796]
[1771135175030,0.0004,70297.0,70289.0,0.07113422]
[1771135175344,0.07112943,70295.0,70289.0,0.07113426]
[1771135175698,0.07152955,70296.0,70289.0,0.02455186]
[1771135176099,0.07152881,70296.0,70287.0,0.07113647]
[1771135176688,0.07113018,70294.0,70288.0,0.07113558]
[1771135176897,0.07113058,70295.0,70289.0,0.07113486]
[1771135178690,0.07112993,70294.0,70289.0,0.02455186]
[1771135181227,0.07112993,70294.0,70288.0,0.07113559]
[1771135182051,0.07152881,70296.0,70285.0,0.09471406]
[1771135182212,0.06985383,70291.0,70287.0,0.0002]
[1771135182629,0.09300502,70291.0,70287.0,0.0002]
[1771135182996,0.0004,70296.0,70283.0,0.0002]
[1771135183197,0.0246248,70286.0,70283.0,0.0002]
[1771135183871,0.07113989,70285.0,70283.0,0.0002]
[1771135184089,0.0246248,70284.0,70283.0,0.0002]
[1771135186624,0.0246248,70284.0,70283.0,5.141e-05]
[1771135186918,0.07113828,70286.0,70283.0,5.141e-05]
[1771135187124,0.09576308,70286.0,70283.0,5.141e-05]
[1771135188189,0.07113902,70285.0,70283.0,5.141e-05]
[1771135189401,0.0246248,70289.0,70273.0,0.12079942]
[1771135189622,0.07114095,70284.0,70279.0,0.23818302]
[1771135189821,0.07114199,70282.0,70276.0,0.07114763]
[1771135190641,0.07114199,70282.0,70275.0,0.16883721]
[1771135190642,0.07114133,70283.0,70277.0,0.07114689]
[1771135191016,0.07114133,70283.0,70277.0,0.06114689]
[1771135191218,0.07114038,70284.0,70277.0,0.07114703]
[1771135191645,0.0711411,70283.0,70277.0,0.07114703]
[1771135191849,0.0711411,70283.0,70276.0,0.07114629]
[1771135191850,0.07114363,70281.0,70275.0,0.0003254]
[1771135192582,0.07114363,70281.0,70275.0,0.07147387]
[1771135195158,0.07114363,70281.0,70276.0,0.00505001]
[1771135196312,0.07113589,70288.0,70276.0,0.00505001]
[1771135196517,0.07114475,70280.0,70275.0,0.0003254]
[1771135197686,0.07114475,70280.0,70275.0,0.00174838]
[1771135198799,0.06946556,70280.0,70275.0,0.00174838]
[1771135199623,0.03707757,70280.0,70275.0,0.00174838]
[1771135200498,0.07114509,70279.0,70275.0,0.0003254]
[1771135202600,0.0711444,70280.0,70275.0,0.0003254]
[1771135202798,0.07114475,70281.0,70275.0,0.0003254]
[1771135204099,0.07114475,70281.0,70275.0,0.0714743]
[1771135204736,0.07114407,70280.0,70275.0,0.0003254]
[1771135206367,0.07114489,70281.0,70275.0,0.07147431]
[1771135208343,0.07114399,70280.0,70275.0,0.0003254]
[1771135208744,0.07114379,70282.0,70275.0,0.07147442]
[1771135208745,0.07114338,70281.0,70275.0,0.07147442]
[1771135212566,0.07114338,70281.0,70271.0,0.28141807]
[1771135213024,0.07114338,70281.0,70273.0,0.07114928]
[1771135213429,0.07114338,70281.0,70274.0,0.07114921]
[1771135214223,0.07114338,70281.0,70274.0,0.03847921]
[1771135214488,0.07114338,70281.0,70273.0,0.07114928]
[1771135214489,0.00012,70280.0,70260.0,0.00032]
[1771135214723,0.02318177,70262.0,70256.0,0.07116756]
[1771135214894,0.02318177,70262.0,70255.0,0.07116868]
[1771135215073,0.02318177,70262.0,70256.0,0.07116748]
[1771135215279,0.02318177,70262.0,70257.0,0.07116704]
[1771135215449,0.02318177,70262.0,70258.0,0.07116595]
[1771135215651,0.02318177,70262.0,70258.0,0.07116617]
[1771135215870,0.02361473,70262.0,70258.0,0.07116617]
[1771135216751,0.02361473,70262.0,70259.0,0.0711651]
[1771135217176,0.02361473,70262.0,70258.0,0.07116607]
[1771135217751,0.02318177,70261.0,70258.0,0.07116607]
[1771135218142,0.02318177,70261.0,70259.0,0.07116505]
[1771135218446,0.02318177,70261.0,70260.0,0.07116424]
[1771135221206,0.02318177,70261.0,70259.0,0.07136505]
[1771135221405,0.02318177,70261.0,70260.0,0.07116424]
[1771135221621,0.00012,70270.0,70259.0,0.07136505]
[1771135221821,0.0912,70280.0,70259.0,0.07136505]
[1771135221822,0.07127216,70278.0,70270.0,0.07115342]
[1771135222025,0.07127216,70278.0,70271.0,0.07115213]
[1771135222269,0.07114819,70276.0,70270.0,0.07115342]
[1771135222464,0.02330717,70278.0,70270.0,0.07115342]
[1771135222465,0.02318177,70277.0,70270.0,0.07115342]
[1771135222627,0.02318177,70277.0,70268.0,0.07115536]
[1771135223271,0.0711481,70276.0,70269.0,0.07115513]
[1771135224242,0.0711481,70276.0,70268.0,0.07115536]
[1771135224444,0.0711481,70276.0,70270.0,0.0711541]
[1771135225182,0.09432909,70277.0,70270.0,0.0711541]
[1771135225613,0.09432909,70277.0,70271.0,0.07115293]
[1771135226902,0.07114807,70276.0,70270.0,0.07115372]
[1771135227684,0.00062,70270.0,70246.0,0.02314791]
[1771135227958,0.02318177,70256.0,70249.0,0.07117529]
[1771135228104,0.02361508,70256.0,70250.0,0.07129424]
[1771135228309,0.02361508,70256.0,70250.0,0.00012]
[1771135228779,0.07117012,70255.0,70250.0,0.00012]
[1771135229259,0.0947837,70256.0,70250.0,0.00012]
[1771135229461,0.02361508,70256.0,70250.0,0.00012]
[1771135229682,0.07115614,70268.0,70250.0,0.02326791]
[1771135229876,0.07115885,70266.0,70259.0,0.07116525]
[1771135230052,0.07116143,70263.0,70257.0,0.07116692]
[1771135230774,0.07116143,70263.0,70255.0,0.09431664]
[1771135230775,0.07116183,70263.0,70256.0,0.07116811]
[1771135230954,0.07116183,70263.0,70257.0,0.07116698]
[1771135231724,0.07116183,70263.0,70256.0,0.07116824]
[1771135232150,0.07116389,70261.0,70253.0,0.0711706]
[1771135232678,0.06801846,70261.0,70255.0,0.07116904]
[1771135234505,0.07116243,70262.0,70256.0,0.07116819]
[1771135234855,0.07116243,70262.0,70255.0,0.07116894]
[1771135235092,0.07116326,70261.0,70255.0,0.07116894]
[1771135235300,0.07116326,70261.0,70255.0,0.07116912]
[1771135235515,0.07116326,70261.0,70254.0,0.07116996]
[1771135235663,0.07116412,70261.0,70254.0,0.07116996]
[1771135236454,0.28464948,70262.0,70252.0,0.07145836]
[1771135236659,0.02318177,70264.0,70252.0,0.0002862]
[1771135236884,0.07116411,70261.0,70254.0,0.07116839]
[1771135237099,0.07116276,70262.0,70255.0,0.07116931]
[1771135237298,0.07116276,70262.0,70256.0,0.07116757]
[1771135237607,0.07116332,70261.0,70255.0,0.07116897]
[1771135237785,0.07116261,70262.0,70256.0,0.07116829]
[1771135237993,0.071163,70263.0,70256.0,0.07116829]
[1771135238195,0.02318177,70264.0,70252.0,0.28497436]
[1771135238583,0.02318177,70264.0,70258.0,0.07116562]
[1771135239102,0.09434204,70264.0,70258.0,0.07116562]
[1771135239740,0.02318177,70264.0,70252.0,0.0002862]
[1771135239895,0.07116137,70263.0,70257.0,0.07116631]
[1771135240894,0.07116057,70264.0,70258.0,0.07116616]
[1771135241508,0.07115925,70265.0,70256.0,0.07116634]
[1771135241714,0.07116136,70263.0,70257.0,0.07116705]
[1771135241934,0.0711623,70262.0,70256.0,0.07116634]
[1771135242248,0.0711623,70262.0,70255.0,0.07116754]
[1771135242460,0.0711614,70263.0,70255.0,0.07116754]
[1771135243490,0.0711614,70263.0,70257.0,0.07116722]
[1771135244377,0.03876403,70263.0,70257.0,0.07116722]
[1771135246256,0.07116245,70262.0,70256.0,0.071168]
[1771135246461,0.03876403,70263.0,70253.0,0.284684]
[1771135246677,0.07116054,70264.0,70253.0,0.30784278]
[1771135246840,0.07116054,70264.0,70257.0,0.07116631]
[1771135247043,0.07116054,70264.0,70258.0,0.07116603]
[1771135248691,0.07116261,70262.0,70257.0,0.0002]
[1771135249102,0.07116141,70263.0,70257.0,0.07136708]
[1771135249604,0.0245782,70254.0,70250.0,0.00012]
[1771135249766,0.02467673,70254.0,70250.0,0.00012]
[1771135250222,9.853e-05,70254.0,70250.0,0.07129435]
[1771135250835,0.2847032,70249.0,70224.0,0.12189577]
[1771135251006,0.00012,70250.0,70242.0,0.07118161]
[1771135251182,0.07129529,70250.0,70242.0,0.07118161]
[1771135251569,0.07117554,70249.0,70242.0,0.0710916]
[1771135251991,0.07118066,70244.0,70242.0,0.0001252]
[1771135252186,0.09575886,70244.0,70242.0,0.0001252]
[1771135252391,0.0245782,70244.0,70242.0,0.0001252]
[1771135252591,0.07117963,70245.0,70242.0,0.0001252]
[1771135253225,0.0711785,70246.0,70242.0,0.0001252]
[1771135253424,0.07117967,70245.0,70242.0,0.0001252]
[1771135254124,0.09575692,70246.0,70242.0,0.0001252]
[1771135254545,0.0711795,70245.0,70242.0,0.0001252]
[1771135255683,0.0245782,70243.0,70242.0,0.0001252]
[1771135255965,0.09575739,70246.0,70242.0,0.0001252]
[1771135256181,0.0245782,70246.0,70242.0,0.0001252]
[1771135256379,0.0711781,70247.0,70242.0,0.0001252]
[1771135256559,0.07117656,70248.0,70242.0,0.0001252]
[1771135256753,0.07117744,70247.0,70242.0,0.0001252]
[1771135256962,0.07117744,70247.0,70242.0,0.0003252]
[1771135257682,0.07117915,70246.0,70242.0,0.0003252]
[1771135258266,0.07118005,70245.0,70242.0,0.0003252]
[1771135258766,0.07117953,70245.0,70242.0,0.0003252]
[1771135258962,0.07117805,70247.0,70242.0,0.0003252]
[1771135260172,0.07117883,70246.0,70242.0,0.0003252]
[1771135260798,0.03877487,70246.0,70242.0,0.0003252]
[1771135261411,0.07117805,70247.0,70242.0,0.0003252]
[1771135261900,9.853e-05,70254.0,70244.0,0.02315878]
[1771135262067,0.07126918,70254.0,70244.0,0.02328398]
[1771135262270,0.07126918,70254.0,70248.0,0.07117625]
[1771135263423,0.07126918,70254.0,70248.0,0.07117639]
[1771135263641,0.07126918,70254.0,70248.0,0.07117624]
[1771135264584,0.07126918,70254.0,70247.0,0.0713008]
[1771135265080,0.07126918,70254.0,70248.0,0.06434273]
[1771135265711,0.07166918,70254.0,70247.0,0.0001252]
[1771135265989,0.07117678,70248.0,70242.0,0.07138181]
[1771135266335,0.0711757,70249.0,70243.0,0.07118124]
[1771135268160,0.07103058,70249.0,70243.0,0.07118124]
[1771135268569,0.07117675,70248.0,70242.0,0.07138181]
[1771135268782,0.1083609,70247.0,70242.0,0.0002]
[1771135268997,0.07117848,70246.0,70242.0,0.0002]
[1771135269212,0.0245782,70245.0,70242.0,0.0002]
[1771135269411,0.07117825,70248.0,70242.0,0.0002]
[1771135269867,0.07117815,70247.0,70242.0,0.0002]
[1771135270083,0.07117723,70248.0,70242.0,0.0002]
[1771135270290,0.07117723,70248.0,70242.0,0.07138231]
[1771135270895,0.07117619,70249.0,70242.0,0.0002]
[1771135271081,0.0711764,70248.0,70242.0,0.0002]
[1771135271381,0.07117777,70247.0,70242.0,0.0002]
[1771135272842,0.07117777,70247.0,70242.0,0.07138242]
[1771135273293,0.07117684,70248.0,70242.0,0.0002]
[1771135273506,0.30927271,70251.0,70242.0,0.0002]
[1771135273507,0.07117924,70246.0,70242.0,0.0002]
[1771135273754,0.07117777,70247.0,70242.0,0.0002]
[1771135274093,0.0711786,70246.0,70242.0,0.0002]
[1771135274617,0.07117777,70247.0,70242.0,0.0002]
[1771135275072,0.07117681,70248.0,70242.0,0.0002]
[1771135275267,0.07117681,70248.0,70242.0,0.07138227]
[1771135275396,0.0711776,70247.0,70242.0,0.0002]
[1771135275943,0.07117674,70248.0,70242.0,0.07138237]
[1771135276253,0.0004,70249.0,70242.0,0.0002]
[1771135276911,0.41180661,70258.0,70248.0,0.0711764]
[1771135277158,0.09152,70269.0,70263.0,0.0711612]
[1771135277344,0.4118377,70267.0,70261.0,0.07116299]
[1771135277563,0.07115827,70266.0,70259.0,0.07116491]
[1771135277771,0.4118378,70267.0,70259.0,0.07116491]
[1771135277977,0.34068,70267.0,70260.0,0.07136417]
[1771135278400,0.34068,70267.0,70261.0,0.07116295]
[1771135278600,0.41183764,70267.0,70260.0,0.07116405]
[1771135278830,0.0711586,70266.0,70260.0,0.0002]
[1771135279017,0.0711586,70266.0,70260.0,0.07116399]
[1771135279230,0.0711586,70266.0,70260.0,0.07136399]
[1771135279662,0.34068,70267.0,70261.0,0.07116319]
[1771135280305,0.07115819,70266.0,70260.0,0.07116415]
[1771135280518,0.0004,70269.0,70260.0,0.0002]
[1771135280728,0.0004,70269.0,70263.0,0.0711612]
[1771135280947,0.07155609,70269.0,70260.0,0.0002]
[1771135281153,0.07155609,70269.0,70262.0,0.07116125]
[1771135281673,0.07130488,70268.0,70263.0,0.0002]
[1771135281900,0.07130488,70268.0,70261.0,0.0711625]
[1771135282314,0.0001484,70268.0,70262.0,0.0002]
[1771135282519,0.0001484,70268.0,70262.0,0.07136188]
[1771135283143,0.0001484,70268.0,70260.0,0.00012]
[1771135283144,0.02437273,70267.0,70260.0,0.00012]
[1771135283345,0.07116038,70264.0,70260.0,0.00012]
[1771135284593,0.0004,70272.0,70260.0,0.02320071]
[1771135284841,0.0004,70272.0,70261.0,0.07116323]
[1771135285026,0.02477273,70278.0,70263.0,0.02308071]
[1771135285264,0.07115069,70274.0,70268.0,0.07115601]
[1771135285936,0.07115577,70269.0,70261.0,0.07116263]
[1771135286152,0.07097363,70269.0,70263.0,0.07116096]
[1771135286381,0.07115697,70268.0,70261.0,0.07116263]
[1771135286593,0.3765566,70285.0,70274.0,0.07114932]
[1771135286794,0.07154519,70279.0,70268.0,0.30770334]
[1771135287016,0.07154519,70279.0,70273.0,0.07115068]
[1771135287452,0.07154519,70279.0,70268.0,0.30783288]
[1771135287453,0.07154519,70279.0,70272.0,0.07115171]
[1771135287656,0.07114885,70276.0,70269.0,0.07115513]
[1771135287865,0.07114783,70277.0,70269.0,0.07115513]
[1771135287866,0.07114925,70275.0,70269.0,0.07115513]
[1771135288303,0.07154635,70278.0,70268.0,0.02321025]
[1771135288516,0.07154635,70278.0,70271.0,0.07115224]
[1771135288718,0.07154635,70278.0,70272.0,0.07115189]
[1771135289157,0.0002948,70278.0,70272.0,0.07115189]
[1771135289376,0.092,70285.0,70276.0,0.02308071]
[1771135289598,0.092,70285.0,70268.0,0.00012954]
[1771135289599,0.10108468,70282.0,70268.0,0.00012954]
[1771135289829,0.07115513,70269.0,70268.0,0.00012954]
[1771135290041,0.07115234,70272.0,70268.0,0.00012954]
[1771135290479,0.07115047,70274.0,70268.0,0.00012954]
[1771135290480,0.0711514,70273.0,70268.0,0.00012954]
[1771135291357,0.07115037,70274.0,70268.0,0.00012954]
[1771135291567,0.0004,70278.0,70268.0,0.00012954]
[1771135291776,0.0004,70278.0,70275.0,0.07114826]
[1771135291955,0.0004,70278.0,70274.0,0.07114973]
[1771135292562,0.0004,70278.0,70275.0,0.02308071]
[1771135293216,0.0004,70278.0,70274.0,0.07114973]
[1771135294842,0.16313933,70285.0,70278.0,0.07114537]
[1771135294998,0.16313933,70285.0,70279.0,0.07114489]
[1771135295196,0.16313933,70285.0,70279.0,0.07110086]
[1771135295520,0.092,70285.0,70279.0,0.07114487]
[1771135295717,0.16313928,70285.0,70279.0,0.07114487]
[1771135296314,0.092,70285.0,70278.0,0.07114565]
[1771135296914,0.092,70285.0,70279.0,0.07114428]
[1771135297121,0.092,70285.0,70278.0,0.07114565]
[1771135297335,0.092,70285.0,70280.0,0.07114372]
[1771135297805,0.092,70285.0,70278.0,0.07114563]
[1771135298031,0.00048,70285.0,70277.0,0.28458629]
[1771135298238,0.25488788,70299.0,70286.0,0.07113731]
[1771135298365,0.00012,70290.0,70285.0,0.07113893]
[1771135300595,1.481e-05,70290.0,70285.0,0.07113893]
[1771135300792,1.481e-05,70290.0,70284.0,0.07113812]
[1771135300998,1.481e-05,70290.0,70286.0,0.07113788]
[1771135301413,1.481e-05,70290.0,70286.0,0.09448342]
[1771135302395,1.481e-05,70290.0,70289.0,0.07113488]
[1771135302620,1.481e-05,70290.0,70285.0,0.07113845]
[1771135302895,1.481e-05,70290.0,70286.0,0.07113715]
[1771135303213,1.481e-05,70290.0,70287.0,0.0711369]
[1771135303639,1.481e-05,70290.0,70283.0,0.28454299]
[1771135303820,1.481e-05,70290.0,70287.0,0.07113689]
[1771135304166,1.481e-05,70290.0,70286.0,0.07113769]
[1771135304514,1.481e-05,70290.0,70284.0,0.07113793]
[1771135304946,1.481e-05,70290.0,70285.0,0.07113873]
[1771135305763,0.00012,70300.0,70289.0,0.07113388]
[1771135305933,0.07112866,70296.0,70289.0,0.07113388]
[1771135306128,0.07112952,70295.0,70289.0,0.07113388]
[1771135306776,0.07152617,70298.0,70289.0,0.07113388]
[1771135306974,0.07112855,70297.0,70287.0,0.09378892]
[1771135307151,0.07112855,70297.0,70287.0,0.02265285]
[1771135307351,0.07112913,70295.0,70289.0,0.07113484]
[1771135307552,0.07112913,70295.0,70287.0,0.09378951]
[1771135307553,0.07112982,70294.0,70287.0,0.09378951]
[1771135308075,0.07113128,70293.0,70287.0,0.09378951]
[1771135309135,0.07112858,70296.0,70289.0,0.0711347]
[1771135309358,0.07112858,70296.0,70290.0,0.07113385]
[1771135309788,0.07112858,70296.0,70290.0,0.06113385]
[1771135309992,0.07112898,70295.0,70288.0,0.07113563]
[1771135310154,0.07112898,70295.0,70287.0,0.09378903]
[1771135310355,0.07112982,70294.0,70288.0,0.07113568]
[1771135311674,0.07112982,70294.0,70289.0,0.07113484]
[1771135311880,0.07112982,70294.0,70288.0,0.07113572]
[1771135312078,0.0711278,70296.0,70280.0,0.00022519]
[1771135312262,0.07113821,70286.0,70281.0,7e-05]
[1771135312457,0.02483597,70292.0,70281.0,7e-05]
[1771135312713,0.30936442,70292.0,70282.0,0.07114126]
[1771135312913,0.07113666,70288.0,70282.0,0.07114126]
[1771135313223,0.07113694,70287.0,70281.0,0.07121281]
[1771135313436,0.07113766,70288.0,70281.0,7e-05]
[1771135313712,0.07113824,70286.0,70281.0,7e-05]
[1771135313923,0.07113708,70287.0,70281.0,0.0712129]
[1771135314124,0.07113788,70288.0,70281.0,7e-05]
[1771135314324,0.00012,70290.0,70280.0,0.001]
[1771135314663,0.00012,70290.0,70279.0,0.0002]
[1771135315064,0.07114085,70284.0,70279.0,0.0002]
[1771135315733,0.28465573,70290.0,70280.0,0.07114399]
[1771135315892,0.07113768,70287.0,70281.0,0.09379501]
[1771135316152,0.07113804,70286.0,70281.0,0.09379501]
[1771135316971,0.07113804,70286.0,70280.0,0.07114399]
[1771135317172,0.07113895,70285.0,70279.0,0.0002]
[1771135317371,0.07114021,70284.0,70279.0,0.0002]
[1771135317773,0.07113895,70285.0,70279.0,0.0002]
[1771135317975,0.07113895,70285.0,70279.0,0.07134478]
[1771135318405,0.07113655,70288.0,70282.0,0.07114153]
[1771135318615,0.07113655,70288.0,70282.0,0.09379438]
[1771135318759,0.00012,70290.0,70282.0,0.02265285]
[1771135318954,0.00012,70290.0,70279.0,0.07134441]
[1771135318955,0.00012,70290.0,70279.0,0.0002]
[1771135319209,0.00012,70290.0,70280.0,0.07114215]
[1771135319408,0.07113746,70287.0,70281.0,0.07114298]
[1771135319910,0.0711362,70288.0,70281.0,0.07114298]
[1771135320210,0.0711362,70288.0,70282.0,0.07114156]
[1771135321174,0.07113584,70289.0,70283.0,0.07114073]
[1771135321381,0.0004,70293.0,70288.0,0.07113505]
[1771135321591,0.0004,70293.0,70285.0,0.07113809]
[1771135321825,0.00010519,70290.0,70287.0,0.0711361]
[1771135322466,0.0004,70293.0,70290.0,0.07113345]
[1771135322989,0.0004,70293.0,70288.0,0.07113559]
[1771135323339,0.0004,70293.0,70289.0,0.07113464]
[1771135324289,0.0004,70293.0,70288.0,0.07113559]
[1771135324483,0.07153084,70293.0,70288.0,0.07113559]
[1771135324883,0.0004,70293.0,70288.0,0.07113559]
[1771135325097,0.0004,70293.0,70287.0,0.07113652]
[1771135325236,0.07113197,70292.0,70287.0,0.07113652]
[1771135325438,0.07153121,70293.0,70287.0,0.07113652]
[1771135325644,0.0004,70293.0,70288.0,0.07113589]
[1771135325845,0.07153092,70293.0,70288.0,0.07113589]
[1771135326072,0.0004,70293.0,70288.0,0.07113589]
[1771135327237,0.07153084,70293.0,70288.0,0.07113589]
[1771135327478,0.07153084,70293.0,70287.0,0.0711351]
[1771135327692,0.10775407,70299.0,70286.0,0.09378902]
[1771135327693,0.0005773,70302.0,70301.0,0.07112274]
[1771135327902,0.0005773,70302.0,70298.0,0.02265285]
[1771135327903,0.00066972,70302.0,70298.0,0.07112513]
[1771135328116,0.00066972,70302.0,70295.0,0.0711282]
[1771135328292,0.00012,70300.0,70294.0,0.09378261]
[1771135328636,0.00012,70300.0,70295.0,0.02265285]
[1771135329061,0.00012,70300.0,70296.0,0.09377992]
[1771135329232,0.00012,70300.0,70296.0,0.09378024]
[1771135329595,0.00012,70300.0,70297.0,0.07112639]
[1771135329997,0.00012,70300.0,70297.0,0.09377924]
[1771135330541,0.00012,70300.0,70297.0,0.02265285]
[1771135331507,0.0004,70298.0,70296.0,0.0711277]
[1771135332105,0.00012,70300.0,70294.0,0.07112906]
[1771135332466,0.00066972,70302.0,70291.0,0.02265285]
[1771135332604,0.00066972,70302.0,70297.0,0.07112647]
[1771135332980,0.00066972,70302.0,70298.0,0.07112574]
[1771135335147,0.00066972,70302.0,70299.0,0.02302016]
[1771135335663,0.00066972,70302.0,70299.0,0.07112403]
[1771135335863,0.00066972,70302.0,70300.0,0.02302016]
[1771135336445,0.00066972,70302.0,70300.0,0.09414382]
[1771135336829,0.00066972,70302.0,70300.0,0.02302016]
[1771135342214,0.00066972,70302.0,70289.0,0.34068]
[1771135342429,0.00066972,70302.0,70295.0,0.07112859]
[1771135342636,0.07179181,70302.0,70296.0,0.07112685]
[1771135342829,0.00066972,70302.0,70293.0,0.07113071]
[1771135343057,0.07112274,70301.0,70293.0,0.07113071]
[1771135343348,0.07112274,70301.0,70294.0,0.07112941]
[1771135343564,0.07112438,70300.0,70294.0,0.07112941]
[1771135344183,0.07112438,70300.0,70295.0,0.07112876]
[1771135344348,0.00066972,70302.0,70292.0,0.03336872]
[1771135344548,0.00066972,70302.0,70299.0,0.10449343]
[1771135344951,0.00066972,70302.0,70299.0,0.03336872]
[1771135345812,0.00066972,70302.0,70280.0,0.00012]
[1771135345813,0.10387579,70299.0,70280.0,0.00012]
[1771135346008,0.07114686,70278.0,70273.0,0.0002]
[1771135346248,0.07114611,70278.0,70273.0,0.0002]
[1771135346675,0.07114686,70279.0,70273.0,0.0002]
[1771135347091,0.07114686,70279.0,70273.0,0.07135073]
[1771135347296,0.07114686,70279.0,70273.0,0.0714807]
[1771135347523,0.10387579,70283.0,70275.0,0.0711483]
[1771135347728,0.07114268,70282.0,70275.0,0.0711483]
[1771135347939,0.37597906,70304.0,70278.0,0.07114509]
[1771135347940,0.28454111,70289.0,70278.0,0.07114509]
[1771135348374,0.07113881,70286.0,70279.0,0.07114448]
[1771135348551,0.10387579,70288.0,70274.0,0.07144238]
[1771135348786,0.07114401,70280.0,70274.0,0.07144238]
[1771135350107,0.07114401,70280.0,70274.0,0.0002925]
[1771135350520,0.07114401,70280.0,70273.0,0.03109119]
[1771135351434,0.28456532,70283.0,70272.0,0.0002]
[1771135351599,0.07115086,70274.0,70272.0,0.0002]
[1771135352006,0.07114927,70275.0,70272.0,0.0002]
[1771135352206,0.071153,70272.0,70267.0,0.0001257]
[1771135352408,0.03876283,70272.0,70267.0,0.00025524]
[1771135352574,0.07115053,70274.0,70267.0,0.00025524]
[1771135352789,0.07115273,70272.0,70267.0,0.00025524]
[1771135353625,0.07115115,70273.0,70267.0,0.07141236]
[1771135353826,0.07114905,70275.0,70268.0,0.07115553]
[1771135354060,0.10399579,70280.0,70267.0,0.0324852]
[1771135354403,0.07115109,70273.0,70267.0,0.10364223]
[1771135354566,0.07115404,70271.0,70267.0,0.00025524]
[1771135355347,0.07115433,70270.0,70267.0,0.00025524]
[1771135355545,0.07115433,70270.0,70261.0,0.34088]
[1771135355546,0.23821873,70274.0,70260.0,0.0002457]
[1771135355741,0.17503665,70264.0,70260.0,0.0002457]
[1771135355949,0.07116134,70263.0,70260.0,0.0002457]
[1771135356126,0.10387579,70268.0,70260.0,0.0002457]
[1771135356368,0.07115935,70265.0,70260.0,0.0002457]
[1771135356599,0.07115715,70267.0,70260.0,0.0002457]
[1771135356794,0.0711565,70268.0,70262.0,0.07116213]
[1771135356974,0.07115789,70267.0,70260.0,0.03247566]
[1771135357766,0.07115646,70268.0,70262.0,0.03222996]
[1771135359864,0.07115646,70268.0,70260.0,0.0004457]
[1771135360484,0.17502889,70271.0,70260.0,0.0004457]
[1771135360697,0.10387579,70269.0,70253.0,0.0003257]
[1771135360875,0.07116819,70257.0,70253.0,0.0003257]
[1771135361274,0.07116893,70256.0,70253.0,0.0003257]
[1771135361476,0.07117032,70254.0,70250.0,0.00012]
[1771135362577,0.07116952,70255.0,70250.0,0.00012]
[1771135363165,0.07117053,70254.0,70250.0,0.00012]
[1771135363823,0.07117207,70253.0,70250.0,0.00012]
[1771135364034,0.07117053,70254.0,70250.0,0.00012]
[1771135364635,0.071167,70258.0,70250.0,0.00012]
[1771135364812,0.28466373,70259.0,70250.0,0.00012]
[1771135365023,0.17617371,70255.0,70250.0,0.00012]
[1771135365245,0.10500435,70259.0,70246.0,0.0003257]
[1771135365447,0.23833873,70260.0,70246.0,0.0003257]
[1771135365654,0.07117029,70255.0,70248.0,0.07117623]
[1771135366193,0.07117039,70254.0,70248.0,0.07117623]
[1771135366846,0.07116952,70255.0,70248.0,0.07117623]
[1771135366999,0.07116952,70255.0,70250.0,0.0002]
[1771135367665,0.07117072,70254.0,70246.0,0.0715041]
[1771135367926,0.07117072,70254.0,70247.0,0.07117656]
[1771135368427,0.07117072,70254.0,70248.0,0.071176]
[1771135368846,0.0711695,70255.0,70249.0,0.07117536]
[1771135369184,0.0711695,70255.0,70248.0,0.07117602]
[1771135369781,0.0711695,70255.0,70249.0,0.07117536]
[1771135372932,0.38966663,70259.0,70246.0,0.0003257]
[1771135372933,0.07116525,70259.0,70246.0,0.0003257]
[1771135373130,0.10500435,70253.0,70246.0,0.0003257]
[1771135373536,0.07117458,70250.0,70249.0,0.0002]
[1771135373940,0.07117372,70251.0,70249.0,0.0002]
[1771135375573,0.07117437,70250.0,70249.0,0.0002]
[1771135375890,0.07117437,70250.0,70244.0,0.094707]
[1771135376089,0.07117437,70250.0,70245.0,0.07117932]
[1771135376258,0.07117369,70251.0,70245.0,0.07117932]